fUSD/lending_fUSD_20250123
["ID","MTS","AMOUNT","RATE_DAILY","PERIOD"]
[350170034,1737667853579,-500.0,0.00018381,2]
[350170035,1737667853587,-500.0,0.00018381,2]
[350170036,1737667853597,-500.0,0.00018381,2]
[350170037,1737667853607,-500.0,0.00018381,2]
[350170038,1737667853616,-500.0,0.00018381,2]
[350170039,1737667853625,-93.43223509,0.00018381,2]
[350170040,1737667853645,-439.73608476,0.00018381,2]
[350170041,1737667853656,-503.2182087,0.00018381,2]
[350170042,1737667853665,-500.0,0.00018381,2]
[350170043,1737667853675,-500.0,0.00018381,2]
[350170044,1737667853684,-507.4186297,0.00018381,2]
[350170045,1737667853693,-500.0,0.00018381,2]
[350170046,1737667853703,-500.0,0.00018381,2]
[350170047,1737667853712,-500.0,0.00018381,2]
[350170048,1737667853722,-500.0,0.00018381,2]
[350170049,1737667853731,-500.0,0.00018381,2]
[350170050,1737667853740,-500.0,0.00018381,2]
[350170051,1737667853750,-500.0,0.00018381,2]
[350170052,1737667853759,-505.310352,0.00018381,2]
[350170053,1737667853768,-500.0,0.00018381,2]
[350170054,1737667853777,-528.63314122,0.00018381,2]
[350170055,1737667853786,-500.0,0.00018381,2]
[350170056,1737667853795,-500.0,0.00018381,2]
[350170057,1737667853805,-500.0,0.00018381,2]
[350170058,1737667853814,-500.0,0.00018381,2]
[350170059,1737667853824,-500.0,0.00018381,2]
[350170060,1737667853833,-500.0,0.00018381,2]
[350170061,1737667853841,-500.0,0.00018381,2]
[350170062,1737667853851,-500.0,0.00018381,2]
[350170063,1737667853861,-500.0,0.00018381,2]
[350170064,1737667853870,-500.0,0.00018381,2]
[350170065,1737667853879,-500.0,0.00018381,2]
[350170066,1737667853888,-260.21253369,0.00018381,2]
[350170067,1737667853897,-500.0,0.00018381,2]
[350170068,1737667853907,-500.0,0.00018381,2]
[350170069,1737667853916,-500.0,0.00018381,2]
[350170070,1737667853925,-500.0,0.00018381,2]
[350170071,1737667853934,-500.0,0.00018381,2]
[350170072,1737667853943,-500.0,0.00018381,2]
[350170073,1737667853957,-500.0,0.00018381,2]
[350170074,1737667853966,-500.0,0.00018381,2]
[350170075,1737667853976,-303.00550757,0.00018381,2]
[350170076,1737667853985,-506.3896974,0.00018381,2]
[350170077,1737667853994,-500.0,0.00018381,2]
[350170078,1737667854004,-500.0,0.00018381,2]
[350170079,1737667854014,-500.0,0.00018381,2]
[350170080,1737667854024,-500.0,0.00018381,2]
[350170081,1737667854033,-500.0,0.00018381,2]
[350170082,1737667854043,-500.0,0.00018381,2]
[350170083,1737667854052,-500.0,0.00018381,2]
[350170084,1737667854062,-500.0,0.00018381,2]
[350170085,1737667854072,-500.0,0.00018381,2]
[350170086,1737667854081,-500.0,0.00018381,2]
[350170087,1737667854091,-500.0,0.00018381,2]
[350170088,1737667854101,-500.0,0.00018381,2]
[350170089,1737667854113,-500.0,0.00018381,2]
[350170090,1737667854122,-500.0,0.00018381,2]
[350170091,1737667854132,-500.0,0.00018381,2]
[350170092,1737667854141,-257.3943157,0.00018381,2]
[350170093,1737667854151,-500.0,0.00018381,2]
[350170094,1737667854161,-500.0,0.00018381,2]
[350170095,1737667854171,-500.0,0.00018381,2]
[350170096,1737667854180,-500.0,0.00018381,2]
[350170097,1737667854190,-500.0,0.00018381,2]
[350170098,1737667854199,-500.0,0.00018381,2]
[350170099,1737667854209,-432.40087591,0.00018381,2]
[350170100,1737667854218,-515.83438806,0.00018381,2]
[350170101,1737667854228,-500.0,0.00018381,2]
[350170102,1737667854238,-500.0,0.00018381,2]
[350170103,1737667854247,-500.0,0.00018381,2]
[350170104,1737667854256,-500.0,0.00018381,2]
[350170105,1737667854265,-500.0,0.00018381,2]
[350170106,1737667854274,-500.0,0.00018381,2]
[350170107,1737667854284,-500.0,0.00018381,2]
[350170108,1737667854293,-500.0,0.00018381,2]
[350170109,1737667854302,-500.0,0.00018381,2]
[350170110,1737667854312,-500.0,0.00018381,2]
[350170111,1737667854321,-500.0,0.00018381,2]
[350170112,1737667854330,-500.0,0.00018381,2]
[350170113,1737667854339,-500.0,0.00018381,2]
[350170114,1737667854348,-500.0,0.00018381,2]
[350170115,1737667854359,-500.0,0.00018381,2]
[350170116,1737667854368,-500.0,0.00018381,2]
[350170117,1737667854377,-500.0,0.00018381,2]
[350170118,1737667854386,-500.0,0.00018381,2]
[350170119,1737667854396,-500.0,0.00018381,2]
[350170120,1737667854405,-500.0,0.00018381,2]
[350170121,1737667854415,-500.0,0.00018381,2]
[350170122,1737667854424,-500.0,0.00018381,2]
[350170123,1737667854434,-500.0,0.00018381,2]
[350170124,1737667854443,-500.0,0.00018381,2]
[350170125,1737667854453,-500.0,0.00018381,2]
[350170126,1737667854462,-215.85140393,0.00018381,2]
[350170127,1737667854473,-500.0,0.00018381,2]
[350170128,1737667854483,-500.0,0.00018381,2]
[350170129,1737667854492,-500.0,0.00018381,2]
[350170130,1737667854502,-500.0,0.00018381,2]
[350170131,1737667854511,-195.99994048,0.00018381,2]
[350170132,1737667854520,-500.0,0.00018381,2]
[350170133,1737667854530,-500.0,0.00018381,2]
[350170134,1737667854539,-503.96224883,0.00018381,2]
[350170135,1737667854549,-500.0,0.00018381,2]
[350170136,1737667854558,-500.0,0.00018381,2]
[350170137,1737667854567,-500.0,0.00018381,2]
[350170138,1737667854576,-500.0,0.00018381,2]
[350170139,1737667854585,-500.0,0.00018381,2]
[350170140,1737667854595,-170.02452528,0.00018381,2]
[350170141,1737667854608,-329.97547472,0.00018381,2]
[350170142,1737667854617,-500.0,0.00018381,2]
[350170143,1737667854627,-500.0,0.00018381,2]
[350170144,1737667854636,-500.0,0.00018381,2]
[350170145,1737667854646,-500.0,0.00018381,2]
[350170146,1737667854655,-500.0,0.00018381,2]
[350170147,1737667854665,-500.0,0.00018381,2]
[350170148,1737667854674,-500.0,0.00018381,2]
[350170149,1737667854683,-500.0,0.00018381,2]
[350170150,1737667854692,-507.49562152,0.00018381,2]
[350170151,1737667854701,-500.0,0.00018381,2]
[350170152,1737667854711,-500.0,0.00018381,2]
[350170153,1737667854726,-500.0,0.00018381,2]
[350170154,1737667854736,-500.0,0.00018381,2]
[350170155,1737667854745,-500.0,0.00018381,2]
[350170156,1737667854754,-500.0,0.00018381,2]
[350170157,1737667854764,-500.0,0.00018381,2]
[350170158,1737667854773,-314.89610121,0.00018381,2]
[350170159,1737667854909,-500.0,0.00018381,2]
[350170160,1737667854920,-500.0,0.00018381,2]
[350170161,1737667854929,-500.0,0.00018381,2]
[350170162,1737667854938,-500.0,0.00018381,2]
[350170163,1737667854948,-500.0,0.00018381,2]
[350170164,1737667854958,-500.0,0.00018381,2]
[350170165,1737667854970,-500.0,0.00018381,2]
[350170166,1737667854980,-500.0,0.00018381,2]
[350170167,1737667854989,-421.28463027,0.00018381,2]
[350170168,1737667855002,-78.71536973,0.00018381,2]
[350170169,1737667855011,-500.0,0.00018381,2]
[350170170,1737667855020,-1056.34,0.00018381,2]
[350170171,1737667855029,-500.0,0.00018381,2]
[350170172,1737667855040,-500.0,0.00018381,2]
[350170173,1737667855050,-500.0,0.00018381,7]
[350170174,1737667855059,-500.0,0.00018381,2]
[350170175,1737667855069,-299.27051454,0.00018381,2]
[350170176,1737667855081,-200.72948546,0.00018381,2]
[350170177,1737667855091,-500.0,0.00018381,2]
[350170178,1737667855101,-780.1,0.00018381,2]
[350170179,1737667855110,-500.0,0.00018381,2]
[350170180,1737667855120,-500.0,0.00018381,2]
[350170181,1737667855129,-489.17051405,0.00018381,2]
[350170182,1737667855140,-10.82948595,0.00018381,2]
[350170183,1737667855150,-500.0,0.00018381,2]
[350170184,1737667855159,-500.46918708,0.00018381,2]
[350170185,1737667855172,-361.39081292,0.00018381,2]
[350170186,1737667855181,-500.0,0.00018381,2]
[350170187,1737667855190,-500.0,0.00018381,2]
[350170188,1737667855199,-1000.0,0.00018381,2]
[350170189,1737667855208,-698.45,0.00018381,2]
[350170190,1737667855218,-500.0,0.00018381,2]
[350170191,1737667855227,-500.0,0.00018381,2]
[350170192,1737667855237,-500.0,0.00018381,2]
[350170193,1737667855246,-500.0,0.00018381,2]
[350170194,1737667855256,-500.0,0.00018381,2]
[350170195,1737667855266,-1007.19,0.00018381,2]
[350170196,1737667855275,-501.01761524,0.00018381,2]
[350170197,1737667855285,-988.24,0.00018381,2]
[350170198,1737667855295,-500.0,0.00018381,2]
[350170199,1737667855304,-277.78287043,0.00018381,2]
[350170200,1737667855313,-500.0,0.00018381,2]
[350170201,1737667855323,-500.0,0.00018381,2]
[350170202,1737667855333,-500.0,0.00018381,2]
[350170203,1737667855342,-500.0,0.00018381,2]
[350170204,1737667855352,-500.0,0.00018381,2]
[350170205,1737667855363,-575.81148993,0.00018381,2]
[350170206,1737667855373,-359.68031992,0.00018381,2]
[350170207,1737667855383,-500.0,0.00018381,2]
[350170208,1737667855393,-500.0,0.00018381,2]
[350170209,1737667855402,-500.0,0.00018381,2]
[350170210,1737667855412,-500.0,0.00018381,2]
[350170211,1737667855423,-300.0,0.00018381,2]
[350170212,1737667855434,-500.0,0.00018381,2]
[350170213,1737667855443,-500.0,0.00018381,2]
[350170214,1737667855452,-397.6979634,0.00018381,2]
[350170215,1737667855462,-500.0,0.00018381,2]
[350170216,1737667855472,-500.0,0.00018381,2]
[350170217,1737667855481,-500.0,0.00018381,2]
[350170218,1737667855490,-500.0,0.00018381,2]
[350170219,1737667855500,-500.0,0.00018381,2]
[350170220,1737667855510,-500.0,0.00018381,2]
[350170221,1737667855519,-500.0,0.00018381,2]
[350170222,1737667855528,-500.0,0.00018381,2]
[350170223,1737667855538,-500.0,0.00018381,2]
[350170224,1737667855549,-500.0,0.00018381,2]
[350170225,1737667855559,-500.0,0.00018381,2]
[350170226,1737667855569,-500.0,0.00018381,2]
[350170227,1737667855585,-500.0,0.00018381,2]
[350170228,1737667855595,-500.0,0.00018381,2]
[350170229,1737667855605,-500.0,0.00018381,2]
[350170230,1737667855615,-500.0,0.00018381,2]
[350170231,1737667855625,-500.0,0.00018381,2]
[350170232,1737667855634,-500.0,0.00018381,2]
[350170233,1737667855644,-500.0,0.00018411,2]
[350170234,1737667855654,-670.93,0.00018427,2]
[350170235,1737667855664,-150.0,0.00018428,2]
[350170236,1737667855674,-1190.16646739,0.00018452,2]
[350170237,1737667855683,-4940.83715065,0.00018456,2]
[350170238,1737667855692,-200.0,0.00018507,2]
[350170239,1737667855701,-163.69948666,0.00018507,2]
[350170240,1737667855711,-2541.4753,0.00018529,2]
[350170241,1737667855720,-200.0,0.0001853,2]
[350170242,1737667855729,-1190.16646739,0.0001859,2]
[350170243,1737667855739,-500.0,0.00018627,2]
[350170244,1737667855749,-500.0,0.00018627,2]
[350170245,1737667855758,-782.15,0.00018627,2]
[350170246,1737667855768,-518.31402507,0.00018627,2]
[350170247,1737667855780,-229.67597493,0.00018627,2]
[350170248,1737667855793,-386.959507,0.00018627,2]
[350170249,1737667855806,-1613.08,0.00018627,2]
[350170250,1737667855815,-500.0,0.00018627,2]
[350170251,1737667855825,-1069.63,0.00018627,2]
[350170252,1737667855834,-500.0,0.00018627,2]
[350170253,1737667855845,-500.0,0.00018627,2]
[350170254,1737667855855,-2017.54948889,0.00018627,2]
[350170255,1737667855867,-657.62051111,0.00018627,2]
[350170256,1737667855876,-1150.56,0.00018627,2]
[350170257,1737667855886,-727.06,0.00018627,2]
[350170258,1737667855895,-535.28,0.00018627,2]
[350170259,1737667855904,-1921.1,0.00018627,2]
[350170260,1737667855914,-500.0,0.00018627,2]
[350170261,1737667855923,-772.64,0.00018627,2]
[350170262,1737667855932,-971.33,0.00018627,2]
[350170263,1737667855942,-1187.22,0.00018627,2]
[350170264,1737667855955,-814.5,0.00018627,2]
[350170265,1737667855964,-1470.28,0.00018627,2]
[350170266,1737667855974,-855.76,0.00018627,2]
[350170267,1737667855983,-503.7,0.00018627,2]
[350170268,1737667855992,-1632.25,0.00018627,2]
[350170269,1737667856002,-601.16,0.00018627,2]
[350170270,1737667856012,-555.34,0.00018627,2]
[350170271,1737667856021,-500.0,0.00018627,2]
[350170272,1737667856030,-650.23,0.00018627,2]
[350170273,1737667856040,-2659.38,0.00018627,2]
[350170274,1737667856050,-1532.98,0.00018627,2]
[350170275,1737667856059,-455.60948889,0.00018627,2]
[350170276,1737667856079,-265.47051111,0.00018627,2]
[350170277,1737667856089,-484.81011666,0.00018627,2]
[350170279,1737667875979,-3882.0,0.000153,5]
[350170280,1737667876012,-614.422528,0.00016438,2]
[350170281,1737667876037,-500.0,0.00016438,2]
[350170282,1737667876062,-500.0,0.00016438,2]
[350170283,1737667876085,-500.0,0.00016438,2]
[350170284,1737667876109,-716.97,0.00016438,2]
[350170285,1737667876131,-500.0,0.00016438,2]
[350170286,1737667876154,-500.0,0.00016438,2]
[350170287,1737667876178,-500.0,0.00016438,2]
[350170288,1737667876200,-500.0,0.00016438,2]
[350170289,1737667876223,-500.0,0.00016438,2]
[350170290,1737667876247,-500.0,0.00016438,2]
[350170291,1737667876270,-500.0,0.00016438,2]
[350170292,1737667876293,-354.712882,0.00016438,2]
[350170293,1737667876456,-500.0,0.00016438,2]
[350170294,1737667876480,-500.0,0.00016438,2]
[350170295,1737667876503,-500.0,0.00016438,2]
[350170296,1737667876526,-636.75,0.00016438,2]
[350170297,1737667876548,-500.0,0.00016438,2]
[350170298,1737667876571,-500.0,0.00016438,2]
[350170299,1737667876596,-3394.15570168,0.00016582,2]
[350170300,1737667876621,-3394.15570168,0.00016647,2]
[350170301,1737667876648,-3394.15570168,0.00016647,2]
[350170302,1737667876672,-3394.15570168,0.00016674,2]
[350170303,1737667876696,-3394.15570168,0.00016681,2]
[350170304,1737667876719,-614.422528,0.00016712,2]
[350170305,1737667876742,-500.0,0.00016712,2]
[350170306,1737667876764,-520.84917444,0.00016712,2]
[350170307,1737667876786,-500.0,0.00016712,2]
[350170308,1737667876809,-716.97,0.00016712,2]
[350170309,1737667876831,-500.0,0.00016712,2]
[350170310,1737667876853,-500.0,0.00016712,2]
[350170311,1737667876876,-500.0,0.00016712,2]
[350170312,1737667876898,-261.75183142,0.00016712,2]
[350170313,1737667876920,-500.0,0.00016712,2]
[350170314,1737667876944,-500.0,0.00016712,2]
[350170315,1737667876969,-500.0,0.00016712,2]
[350170316,1737667876993,-354.712882,0.00016712,2]
[350170317,1737667877017,-500.0,0.00016712,2]
[350170318,1737667877041,-500.0,0.00016712,2]
[350170319,1737667877064,-636.75,0.00016712,2]
[350170320,1737667877087,-561.99414465,0.00016712,2]
[350170321,1737667877109,-500.0,0.00016712,2]
[350170322,1737667877133,-614.422528,0.00016986,2]
[350170323,1737667877157,-500.0,0.00016986,2]
[350170324,1737667877180,-649.2922451,0.00016986,2]
[350170325,1737667877203,-716.97,0.00016986,2]
[350170326,1737667877228,-500.0,0.00016986,2]
[350170327,1737667877251,-500.0,0.00016986,2]
[350170328,1737667877274,-500.0,0.00016986,2]
[350170329,1737667877297,-500.0,0.00016986,2]
[350170330,1737667877320,-500.0,0.00016986,2]
[350170331,1737667877342,-500.0,0.00016986,2]
[350170332,1737667877366,-354.712882,0.00016986,2]
[350170333,1737667877392,-500.0,0.00016986,2]
[350170334,1737667877415,-500.0,0.00016986,2]
[350170335,1737667877438,-636.75,0.00016986,2]
[350170336,1737667877460,-381.00948331,0.00016986,2]
[350170337,1737667877492,500.0,0.00016712,2]
[350170338,1737667877540,313.73136224,0.00016986,2]
[350170339,1737667877727,747.99,0.00016438,2]
[350170340,1737667877853,742.03702044,0.00016712,2]
[350170343,1737668412910,164.71,0.00010137,2]
[350170357,1737669031944,-647.89,0.00013482,2]
[350170358,1737669031954,-1044.178653,0.00014925,2]
[350170359,1737669031964,-550.0,0.00015,2]
[350170360,1737669031974,-250.0,0.00015407,2]
[350170361,1737669031983,-1375.48999651,0.00015485,2]
[350170362,1737669032061,-389.613202,0.00015485,2]
[350170363,1737669032074,-9620.65377941,0.00015485,2]
[350170364,1737669032086,-10590.1715622,0.00015485,2]
[350170365,1737669032186,-1279.88649238,0.00015485,2]
[350170366,1737669032323,-5535.76,0.00015485,2]
[350170367,1737669032334,-949.9649675,0.00015485,2]
[350170368,1737669032344,-141.03010736,0.00015523,2]
[350170386,1737669037839,-19.99989264,0.00015523,2]
[350170387,1737669037850,-279.44,0.00015655,2]
[350170388,1737669037860,-613.83,0.00015692,2]
[350170389,1737669037870,-4138.4,0.00015729,2]
[350170390,1737669037880,-250.0,0.0001574,2]
[350170391,1737669037890,-647.89,0.00015746,2]
[350170392,1737669037900,-200.0,0.00015764,2]
[350170393,1737669037909,-863.74430736,0.00015997,2]
[350170394,1737669037921,-136.25569264,0.00015997,2]
[350170395,1737669037931,-152.83,0.00016041,2]
[350170396,1737669037940,-869.21430736,0.00016052,2]
[350170397,1737669037963,-5994.60083004,0.00016052,2]
[350170398,1737669037974,-587.35161687,0.00016052,2]
[350170399,1737669037985,-1133.02067058,0.00016052,2]
[350170400,1737669038098,-4318.81257515,0.00016052,2]
[350170401,1737669038108,-173.47,0.00016067,2]
[350170402,1737669038119,-250.0,0.00016098,2]
[350170403,1737669038128,-500.0,0.00016247,2]
[350170404,1737669038138,-306.20272004,0.00016338,2]
[350170405,1737669038149,-227.63729551,0.00016338,2]
[350170406,1737669038158,-939.0919282,0.00016343,2]
[350170413,1737669039986,-61.9480718,0.00016343,2]
[350170414,1737669039995,-194.6609282,0.00016415,2]
[350170415,1737669040134,-2127.93396727,0.00016338,2]
[350170416,1737669040181,-4086.0925127,0.00016338,2]
[350170417,1737669040191,-3913.9074873,0.00016415,2]
[350170418,1737669040203,-12013.55573368,0.00016415,2]
[350170419,1737669040214,-2257.77585082,0.00016415,2]
[350170420,1737669040224,-500.0,0.00016438,2]
[350170421,1737669040233,-500.0,0.00016438,2]
[350170422,1737669040243,-383.53758481,0.00016438,2]
[350170423,1737669040253,-500.0,0.00016438,2]
[350170424,1737669040262,-500.0,0.00016438,2]
[350170425,1737669040272,-281.09545576,0.00016438,2]
[350170426,1737669040283,-218.90454424,0.00016438,2]
[350170427,1737669040292,-500.0,0.00016438,2]
[350170428,1737669040301,-11.2638846,0.00016438,2]
[350170429,1737669040323,-413.10456001,0.00016438,2]
[350170430,1737669040335,-75.63155539,0.00016438,2]
[350170431,1737669040344,-500.0,0.00016438,2]
[350170432,1737669040355,-509.78964559,0.00016438,2]
[350170433,1737669040363,-500.0,0.00016438,2]
[350170434,1737669040373,-500.0,0.00016438,2]
[350170435,1737669040382,-500.0,0.00016438,2]
[350170436,1737669040391,-500.0,0.00016438,2]
[350170437,1737669040402,-500.0,0.00016438,2]
[350170438,1737669040412,-500.0,0.00016438,2]
[350170439,1737669040421,-500.0,0.00016438,2]
[350170440,1737669040430,-500.0,0.00016438,2]
[350170441,1737669040439,-500.0,0.00016438,2]
[350170442,1737669040449,-500.0,0.00016438,2]
[350170443,1737669040457,-500.0,0.00016438,2]
[350170444,1737669040467,-500.0,0.00016438,2]
[350170445,1737669040475,-500.0,0.00016438,2]
[350170446,1737669040484,-500.0,0.00016438,2]
[350170448,1737669040494,-500.0,0.00016438,2]
[350170450,1737669040503,-500.0,0.00016438,2]
[350170452,1737669040513,-500.0,0.00016438,2]
[350170454,1737669040522,-500.0,0.00016438,2]
[350170456,1737669040531,-230.73925174,0.00016438,2]
[350170457,1737669040540,-500.0,0.00016438,2]
[350170459,1737669040549,-500.0,0.00016438,2]
[350170461,1737669040560,-500.0,0.00016438,2]
[350170463,1737669040569,-500.0,0.00016438,2]
[350170465,1737669040578,-500.0,0.00016438,2]
[350170467,1737669040587,-500.0,0.00016438,2]
[350170468,1737669040596,-507.06762682,0.00016438,2]
[350170470,1737669040605,-500.0,0.00016438,2]
[350170472,1737669040614,-412.7202126,0.00016438,2]
[350170474,1737669040623,-500.0,0.00016438,2]
[350170476,1737669040633,-511.34474977,0.00016438,2]
[350170478,1737669040643,-500.0,0.00016438,2]
[350170480,1737669040652,-500.0,0.00016438,2]
[350170482,1737669040662,-500.0,0.00016438,2]
[350170484,1737669040671,-500.0,0.00016438,2]
[350170502,1737669040848,-500.0,0.00016438,2]
[350170504,1737669040858,-500.0,0.00016438,2]
[350170506,1737669040867,-500.0,0.00016438,2]
[350170507,1737669040878,-500.0,0.00016438,2]
[350170509,1737669040887,-500.0,0.00016438,2]
[350170511,1737669040896,-500.0,0.00016438,2]
[350170513,1737669040906,-500.0,0.00016438,2]
[350170515,1737669040915,-500.0,0.00016438,2]
[350170517,1737669040924,-500.0,0.00016438,2]
[350170519,1737669040933,-500.0,0.00016438,2]
[350170521,1737669040942,-500.0,0.00016438,2]
[350170522,1737669040951,-500.0,0.00016438,2]
[350170524,1737669040961,-460.69271154,0.00016438,2]
[350170526,1737669040970,-500.0,0.00016438,2]
[350170528,1737669040979,-248.19988427,0.00016438,2]
[350170530,1737669040988,-500.0,0.00016438,2]
[350170532,1737669040996,-265.21231949,0.00016438,2]
[350170533,1737669041006,-500.0,0.00016438,2]
[350170535,1737669041015,-500.0,0.00016438,2]
[350170537,1737669041025,-500.0,0.00016438,2]
[350170539,1737669041036,-500.0,0.00016438,2]
[350170541,1737669041045,-500.0,0.00016438,2]
[350170543,1737669041054,-500.0,0.00016438,2]
[350170545,1737669041064,-500.0,0.00016438,2]
[350170546,1737669041074,-500.0,0.00016438,2]
[350170548,1737669041083,-500.0,0.00016438,2]
[350170550,1737669041093,-500.0,0.00016438,2]
[350170551,1737669041102,-500.0,0.00016438,2]
[350170552,1737669041111,-500.0,0.00016438,2]
[350170553,1737669041119,-500.0,0.00016438,2]
[350170554,1737669041128,-500.0,0.00016438,2]
[350170555,1737669041137,-500.0,0.00016438,2]
[350170556,1737669041146,-458.88924295,0.00016438,2]
[350170557,1737669041158,-41.11075705,0.00016438,2]
[350170558,1737669041167,-500.0,0.00016438,2]
[350170559,1737669041175,-500.0,0.00016438,2]
[350170560,1737669041184,-500.0,0.00016438,2]
[350170561,1737669041193,-500.0,0.00016438,2]
[350170562,1737669041202,-500.0,0.00016438,2]
[350170563,1737669041210,-500.0,0.00016438,2]
[350170564,1737669041219,-500.0,0.00016438,2]
[350170566,1737669041228,-500.0,0.00016438,2]
[350170567,1737669041237,-500.0,0.00016438,2]
[350170569,1737669041247,-500.0,0.00016438,2]
[350170571,1737669041256,-251.38924295,0.00016438,2]
[350170573,1737669041268,-182.65124243,0.00016438,2]
[350170575,1737669041277,-322.95653086,0.00016438,2]
[350170577,1737669041287,-500.0,0.00016438,2]
[350170579,1737669041296,-148.23340875,0.00016438,2]
[350170581,1737669041307,-351.76659125,0.00016438,2]
[350170584,1737669041321,-500.0,0.00016438,2]
[350170585,1737669041331,-500.0,0.00016438,7]
[350170587,1737669041340,-500.0,0.00016438,2]
[350170589,1737669041349,-500.0,0.00016438,2]
[350170591,1737669041360,-500.0,0.00016438,2]
[350170593,1737669041369,-466.82954661,0.00016438,2]
[350170595,1737669041379,-500.0,0.00016438,2]
[350170597,1737669041388,-500.0,0.00016438,2]
[350170599,1737669041400,-500.0,0.00016438,2]
[350170601,1737669041409,-500.0,0.00016438,2]
[350170603,1737669041418,-500.0,0.00016438,2]
[350170604,1737669041428,-500.0,0.00016438,2]
[350170605,1737669041437,-522.42,0.00016438,2]
[350170606,1737669041447,-387.25757459,0.00016438,2]
[350170607,1737669041456,-500.0,0.00016438,2]
[350170608,1737669041466,-500.0,0.00016438,2]
[350170609,1737669041474,-500.0,0.00016438,2]
[350170610,1737669041483,-500.0,0.00016438,2]
[350170611,1737669041493,-500.0,0.00016438,2]
[350170612,1737669041502,-500.0,0.00016438,2]
[350170613,1737669041511,-240.89628755,0.00016438,2]
[350170620,1737669042940,-259.10371245,0.00016438,2]
[350170621,1737669042949,-543.14,0.00016438,2]
[350170622,1737669042959,-69.78693177,0.00016438,2]
[350170623,1737669042971,-430.21306823,0.00016438,2]
[350170624,1737669042980,-500.0,0.00016438,2]
[350170625,1737669042990,-500.0,0.00016438,2]
[350170626,1737669042999,-500.0,0.00016438,2]
[350170627,1737669043008,-500.0,0.00016438,2]
[350170628,1737669043017,-500.0,0.00016438,2]
[350170629,1737669043026,-38.22477627,0.00016438,2]
[350170630,1737669043605,-461.77522373,0.00016438,2]
[350170631,1737669043615,-500.0,0.00016438,2]
[350170632,1737669043624,-300.0,0.00016438,2]
[350170633,1737669043633,-500.0,0.00016438,2]
[350170634,1737669043642,-500.0,0.00016438,2]
[350170635,1737669043651,-500.0,0.00016438,2]
[350170636,1737669043660,-500.0,0.00016438,2]
[350170637,1737669043670,-517.88483289,0.00016438,2]
[350170638,1737669043679,-500.0,0.00016438,2]
[350170639,1737669043688,-500.0,0.00016438,2]
[350170640,1737669043698,-500.0,0.00016438,2]
[350170641,1737669043707,-500.0,0.00016438,2]
[350170642,1737669043716,-500.0,0.00016438,2]
[350170643,1737669043725,-500.0,0.00016438,2]
[350170644,1737669043735,-500.0,0.00016438,2]
[350170645,1737669043744,-500.0,0.00016438,2]
[350170646,1737669043754,-500.0,0.00016438,2]
[350170647,1737669043763,-500.0,0.00016438,2]
[350170648,1737669043773,-500.0,0.00016438,2]
[350170649,1737669043782,-500.0,0.00016438,2]
[350170650,1737669043791,-169.11058787,0.00016438,2]
[350170651,1737669043800,-500.0,0.00016438,2]
[350170652,1737669043811,-500.0,0.00016438,2]
[350170653,1737669043820,-500.0,0.00016438,2]
[350170654,1737669043830,-500.0,0.00016438,2]